lending/lending_fUSD_20250501
["ID","MTS","AMOUNT","RATE_DAILY","PERIOD"]
[359571749,1746133843943,-500.0,0.00035616,11]
[359571750,1746133843953,-500.0,0.00035616,11]
[359571751,1746133843964,-500.0,0.00035616,11]
[359571752,1746133843974,-536.48277515,0.00035616,11]
[359571753,1746133843984,-470.0,0.00035616,11]
[359571754,1746133843994,-470.0,0.00035616,11]
[359571755,1746133844004,-470.0,0.00035616,11]
[359571756,1746133844016,-539.72512155,0.00035616,11]
[359571757,1746133844026,-450.0,0.00035616,11]
[359571758,1746133844035,-363.34795656,0.00035616,11]
[359571759,1746133844045,-470.0,0.00035616,11]
[359571760,1746133844055,-470.0,0.00035616,11]
[359571761,1746133844065,-450.0,0.00035616,11]
[359571762,1746133844075,-450.0,0.00035616,11]
[359571763,1746133844085,-450.0,0.00035616,11]
[359571764,1746133844097,-692.14,0.00035616,11]
[359571765,1746133844107,-1162.27,0.00035616,11]
[359571766,1746133844117,-495.72,0.00035616,11]
[359571767,1746133844127,-450.0,0.00035616,11]
[359571768,1746133844136,-983.38,0.00035616,11]
[359571769,1746133844146,-170.90300038,0.00035616,11]
[359571770,1746133844156,-470.0,0.00035616,11]
[359571771,1746133844167,-151.0,0.00035616,7]
[359571772,1746133844176,-450.0,0.00035616,11]
[359571773,1746133844186,-450.0,0.00035616,11]
[359571774,1746133844196,-475.94,0.00035616,11]
[359571775,1746133844206,-450.0,0.00035616,11]
[359571776,1746133844215,-319.82,0.00035616,2]
[359571777,1746133844225,-541.63772701,0.00035616,11]
[359571778,1746133844235,-470.0,0.00035616,11]
[359571779,1746133844244,-450.0,0.00035616,11]
[359571780,1746133844254,-419.89136213,0.00035616,11]
[359571781,1746133844264,-450.0,0.00035616,11]
[359571782,1746133844273,-470.0,0.00035616,11]
[359571783,1746133844283,-450.0,0.00035616,11]
[359571784,1746133844293,-470.0,0.00035616,11]
[359571785,1746133844303,-450.0,0.00035616,11]
[359571786,1746133844312,-566.88,0.00035616,11]
[359571787,1746133844322,-470.0,0.00035616,11]
[359571788,1746133844334,-450.0,0.00035616,11]
[359571789,1746133844344,-151.0,0.00035616,7]
[359571790,1746133844354,-151.0,0.00035616,7]
[359571791,1746133844363,-450.0,0.00035616,11]
[359571792,1746133844374,-470.0,0.00035616,11]
[359571793,1746133844383,-450.0,0.00035616,11]
[359571794,1746133844393,-470.0,0.00035616,11]
[359571795,1746133844403,-450.0,0.00035616,11]
[359571796,1746133844414,-450.0,0.00035616,2]
[359571797,1746133844424,-470.0,0.00035616,11]
[359571798,1746133844434,-815.53,0.00035616,11]
[359571799,1746133844444,-470.0,0.00035616,11]
[359571800,1746133844455,-450.0,0.00035616,11]
[359571801,1746133844464,-450.0,0.00035616,11]
[359571802,1746133844475,-470.0,0.00035616,11]
[359571803,1746133844487,-1328.02,0.00035616,11]
[359571804,1746133844497,-506.81321354,0.00035616,11]
[359571805,1746133844506,-470.0,0.00035616,11]
[359571806,1746133844516,-152.544242,0.00035616,7]
[359571807,1746133844527,-860.69,0.00035616,11]
[359571808,1746133844538,-470.0,0.00035616,11]
[359571809,1746133844548,-470.0,0.00035616,11]
[359571810,1746133844559,-509.39,0.00035616,11]
[359571811,1746133844570,-450.0,0.00035616,2]
[359571812,1746133844579,-781.21,0.00035616,11]
[359571813,1746133844589,-1075.77,0.00035616,11]
[359571814,1746133844599,-548.56842744,0.00035616,11]
[359571815,1746133844608,-472.77,0.00035616,11]
[359571816,1746133844619,-470.0,0.00035616,11]
[359571817,1746133844630,-708.39,0.00035616,11]
[359571818,1746133844640,-406.42275344,0.00035616,11]
[359571819,1746133844651,-470.0,0.00035616,11]
[359571820,1746133844663,-976.36,0.00035616,11]
[359571821,1746133844673,-450.0,0.00035616,2]
[359571822,1746133844684,-450.0,0.00035616,11]
[359571823,1746133844694,-450.0,0.00035616,11]
[359571824,1746133844704,-521.66034455,0.00035616,11]
[359571825,1746133844714,-450.0,0.00035616,11]
[359571826,1746133844724,-450.0,0.00035616,11]
[359571827,1746133844734,-508.74659321,0.00035616,11]
[359571828,1746133844743,-470.0,0.00035616,11]
[359571829,1746133844754,-470.0,0.00035616,11]
[359571830,1746133844764,-450.0,0.00035616,11]
[359571831,1746133844775,-450.0,0.00035616,11]
[359571832,1746133844785,-450.0,0.00035616,11]
[359571833,1746133844794,-450.0,0.00035616,11]
[359571834,1746133844804,-450.0,0.00035616,11]
[359571835,1746133844814,-470.0,0.00035616,11]
[359571836,1746133844823,-888.78,0.00035616,11]
[359571837,1746133844834,-483.06,0.00035616,11]
[359571838,1746133844844,-500.0,0.00035616,11]
[359571839,1746133844856,-450.0,0.00035616,11]
[359571840,1746133844866,-530.69799756,0.00035616,11]
[359571841,1746133844876,-450.0,0.00035616,11]
[359571842,1746133844886,-514.56565839,0.00035616,11]
[359571843,1746133844895,-450.0,0.00035616,11]
[359571844,1746133844905,-408.54688901,0.00035616,11]
[359571845,1746133844915,-508.88,0.00035616,11]
[359571846,1746133844925,-540.73786731,0.00035616,11]
[359571847,1746133844935,-613.48,0.00035616,11]
[359571848,1746133844946,-450.0,0.00035616,11]
[359571849,1746133844955,-470.0,0.00035616,11]
[359571850,1746133844965,-450.0,0.00035616,11]
[359571851,1746133844975,-803.53,0.00035616,11]
[359571852,1746133844986,-450.0,0.00035616,11]
[359571853,1746133844996,-514.40965256,0.00035616,11]
[359571854,1746133845006,-450.0,0.00035616,11]
[359571855,1746133845017,-470.0,0.00035616,11]
[359571856,1746133845026,-450.0,0.00035616,11]
[359571857,1746133845036,-450.0,0.00035616,11]
[359571858,1746133845046,-450.0,0.00035616,11]
[359571859,1746133845056,-556.93128772,0.00035616,11]
[359571860,1746133845066,-470.0,0.00035616,11]
[359571861,1746133845075,-549.22,0.00035616,11]
[359571862,1746133845084,-450.0,0.00035616,11]
[359571863,1746133845093,-470.0,0.00035616,11]
[359571864,1746133845103,-450.0,0.00035616,11]
[359571865,1746133845114,-470.0,0.00035616,11]
[359571866,1746133845123,-450.0,0.00035616,11]
[359571867,1746133845133,-535.38615794,0.00035616,11]
[359571868,1746133845143,-982.42,0.00035616,11]
[359571869,1746133845152,-522.33417101,0.00035616,11]
[359571870,1746133845162,-596.08,0.00035616,11]
[359571871,1746133845171,-158.203584,0.00035616,7]
[359571872,1746133845181,-500.0,0.00035616,11]
[359571873,1746133845191,-1087.08,0.00035616,11]
[359571874,1746133845200,-500.0,0.00035616,11]
[359571875,1746133845209,-500.0,0.00035616,11]
[359571876,1746133845219,-450.0,0.00035616,11]
[359571877,1746133845228,-500.0,0.00035616,11]
[359571878,1746133845237,-500.0,0.00035616,11]
[359571879,1746133845247,-500.0,0.00035616,11]
[359571880,1746133845257,-470.0,0.00035616,11]
[359571881,1746133845266,-500.0,0.00035616,11]
[359571882,1746133845276,-500.0,0.00035616,11]
[359571883,1746133845286,-500.0,0.00035616,11]
[359571884,1746133845295,-450.0,0.00035616,11]
[359571885,1746133845304,-500.0,0.00035616,11]
[359571886,1746133845314,-500.0,0.00035616,11]
[359571887,1746133845323,-500.0,0.00035616,11]
[359571888,1746133845336,-500.0,0.00035616,11]
[359571889,1746133845345,-506.81346082,0.00035616,11]
[359571890,1746133845357,-470.0,0.00035616,11]
[359571891,1746133845367,-500.0,0.00035616,120]
[359571892,1746133845377,-450.0,0.00035616,11]
[359571893,1746133845386,-275.25771566,0.00035616,11]
[359571894,1746133845396,-313.35008691,0.00035616,11]
[359571895,1746133845406,-470.0,0.00035616,11]
[359571896,1746133845416,-506.22,0.00035616,11]
[359571897,1746133845428,-522.74,0.00035616,11]
[359571898,1746133845438,-347.94739802,0.00035616,11]
[359571899,1746133845448,-1460.54,0.00035616,11]
[359571900,1746133845459,-450.0,0.00035616,11]
[359571901,1746133845469,-450.0,0.00035616,11]
[359571902,1746133845479,-470.0,0.00035616,11]
[359571903,1746133845488,-469.3,0.00035616,11]
[359571904,1746133845498,-494.31,0.00035616,11]
[359571905,1746133845507,-280.109296,0.00035616,7]
[359571906,1746133845517,-151.0,0.00035616,7]
[359571907,1746133845526,-151.0,0.00035616,7]
[359571908,1746133845536,-517.74829216,0.00035616,11]
[359571909,1746133845545,-450.0,0.00035616,11]
[359571910,1746133845555,-450.0,0.00035616,11]
[359571911,1746133845564,-470.0,0.00035616,11]
[359571912,1746133845573,-450.0,0.00035616,11]
[359571913,1746133845583,-254.11,0.00035616,11]
[359571914,1746133845592,-497.47,0.00035616,11]
[359571915,1746133845602,-902.5,0.00035616,11]
[359571916,1746133845611,-450.0,0.00035616,11]
[359571917,1746133845621,-450.0,0.00035616,11]
[359571918,1746133845630,-633.53,0.00035616,11]
[359571919,1746133845640,-547.8991961,0.00035616,11]
[359571920,1746133845649,-1096.876645,0.00035616,11]
[359571921,1746133845659,-450.0,0.00035616,11]
[359571922,1746133845668,-512.71650542,0.00035616,11]
[359571923,1746133845678,-450.0,0.00035616,11]
[359571924,1746133845687,-586.64,0.00035616,11]
[359571925,1746133845697,-450.0,0.00035616,11]
[359571926,1746133845706,-1583.04,0.00035616,11]
[359571927,1746133845716,-450.0,0.00035616,11]
[359571928,1746133845725,-470.0,0.00035616,11]
[359571929,1746133845735,-470.0,0.00035616,11]
[359571930,1746133845745,-520.27958928,0.00035616,11]
[359571931,1746133845754,-470.0,0.00035616,11]
[359571932,1746133845764,-527.49764963,0.00035616,11]
[359571933,1746133845773,-450.0,0.00035616,11]
[359571934,1746133845783,-546.26285448,0.00035616,11]
[359571935,1746133845793,-504.6,0.00035616,11]
[359571936,1746133845803,-686.46,0.00035616,11]
[359571937,1746133845814,-450.0,0.00035616,11]
[359571938,1746133845823,-450.0,0.00035616,11]
[359571939,1746133845833,-733.99,0.00035616,11]
[359571940,1746133845845,-450.0,0.00035616,11]
[359571941,1746133845855,-450.0,0.00035616,11]
[359571942,1746133845864,-450.0,0.00035616,11]
[359571943,1746133845875,-450.0,0.00035616,11]
[359571944,1746133845885,-540.59207806,0.00035616,11]
[359571945,1746133845895,-450.0,0.00035616,11]
[359571946,1746133845905,-500.0,0.00035616,11]
[359571947,1746133845915,-450.0,0.00035616,11]
[359571948,1746133845926,-450.0,0.00035616,11]
[359571949,1746133845937,-467.26,0.00035616,11]
[359571950,1746133845947,-450.0,0.00035616,11]
[359571951,1746133845956,-554.68,0.00035616,11]
[359571952,1746133845966,-1506.96,0.00035616,11]
[359571953,1746133845976,-500.0,0.00035616,11]
[359571954,1746133845986,-450.0,0.00035616,11]
[359571955,1746133845997,-2075.49,0.00035616,11]
[359571956,1746133846007,-450.0,0.00035616,11]
[359571957,1746133846017,-470.0,0.00035616,11]
[359571958,1746133846027,-450.0,0.00035616,11]
[359571959,1746133846038,-450.0,0.00035616,11]
[359571961,1746133846047,-658.3,0.00035616,11]
[359571962,1746133846057,-450.0,0.00035616,11]
[359571963,1746133846067,-209.242203,0.00035616,7]
[359571964,1746133846076,-450.0,0.00035616,11]
[359571965,1746133846086,-798.04,0.00035616,11]
[359571966,1746133846096,-585.69990437,0.00035616,11]
[359571967,1746133846106,-450.0,0.00035616,11]
[359571968,1746133846117,-450.0,0.00035616,11]
[359571969,1746133846127,-458.85,0.00035616,11]
[359571970,1746133846137,-270.72167125,0.00035616,11]
[359571971,1746133846148,-450.0,0.00035616,11]
[359571972,1746133846157,-450.0,0.00035616,11]
[359571973,1746133846235,-450.0,0.00035616,11]
[359571974,1746133846245,-155.19375521,0.00035616,11]
[359571975,1746133846255,-851.55,0.00035616,11]
[359571976,1746133846264,-450.0,0.00035616,11]
[359571977,1746133846273,-456.08,0.00035616,11]
[359571978,1746133846283,-450.0,0.00035616,11]
[359571979,1746133846291,-2040.31,0.00035616,11]
[359571980,1746133846300,-450.0,0.00035616,11]
[359571981,1746133846310,-450.0,0.00035616,11]
[359571982,1746133846320,-542.3392265,0.00035616,11]
[359571983,1746133846331,-450.0,0.00035616,11]
[359571984,1746133846342,-470.0,0.00035616,11]
[359571985,1746133846352,-561.41,0.00035616,11]
[359571986,1746133846362,-500.0,0.00035616,11]
[359571987,1746133846371,-572.4,0.00035616,11]
[359571988,1746133846382,-501.05,0.00035616,11]
[359571989,1746133846392,-915.07,0.00035616,11]
[359571990,1746133846402,-450.0,0.00035616,11]
[359571991,1746133846412,-450.0,0.00035616,11]
[359571992,1746133846421,-175.13126861,0.00035616,11]
[359571993,1746133846430,-450.0,0.00035616,11]
[359571994,1746133846440,-990.87,0.00035616,11]
[359571995,1746133846449,-450.0,0.00035616,11]
[359571996,1746133846458,-839.92,0.00035616,11]
[359571997,1746133846468,-571.53067943,0.00035616,11]
[359571998,1746133846477,-921.09,0.00035616,11]
[359571999,1746133846487,-1012.65,0.00035616,11]
[359572000,1746133846496,-450.0,0.00035616,11]
[359572001,1746133846506,-450.0,0.00035616,7]
[359572002,1746133846516,-450.0,0.00035616,11]
[359572003,1746133846526,-832.15,0.00035616,11]
[359572004,1746133846536,-450.0,0.00035616,11]
[359572005,1746133846546,-756.88,0.00035616,11]
[359572006,1746133846557,-500.0,0.00035616,11]
[359572007,1746133846567,-806.89,0.00035616,11]
[359572008,1746133846576,-1326.45,0.00035616,11]
[359572009,1746133846586,-450.0,0.00035616,11]
[359572010,1746133846596,-450.0,0.00035616,11]
[359572011,1746133846605,-450.0,0.00035616,11]
[359572012,1746133846614,-2318.28,0.00035616,11]
[359572013,1746133846624,-888.87,0.00035616,11]
[359572014,1746133846633,-450.0,0.00035616,11]
[359572016,1746133846643,-500.09,0.00035616,11]
[359572018,1746133846653,-450.0,0.00035616,11]
[359572020,1746133846662,-450.0,0.00035616,11]
[359572021,1746133846672,-1359.42,0.00035616,11]
[359572023,1746133846681,-450.0,0.00035616,11]
[359572026,1746133846691,-450.0,0.00035616,11]
[359572028,1746133846701,-500.0,0.00035616,11]
[359572030,1746133846710,-630.97,0.00035616,11]
[359572032,1746133846719,-809.51,0.00035616,11]
[359572034,1746133846728,-450.0,0.00035616,11]
[359572036,1746133846738,-450.0,0.00035616,11]
[359572038,1746133846747,-450.0,0.00035616,11]
[359572039,1746133846757,-450.0,0.00035616,11]
[359572041,1746133846766,-570.44827194,0.00035616,11]
[359572044,1746133846775,-950.96,0.00035616,11]
[359572045,1746133846785,-594.82,0.00035616,11]
[359572048,1746133846795,-450.0,0.00035616,11]
[359572050,1746133846805,-450.0,0.00035616,11]
[359572052,1746133846815,-511.0196778,0.00035616,11]
[359572054,1746133846825,-450.0,0.00035616,11]
[359572056,1746133846834,-934.55,0.00035616,11]
[359572058,1746133846844,-1085.3,0.00035616,11]
[359572060,1746133846854,-450.0,0.00035616,11]
[359572062,1746133846863,-450.0,0.00035616,11]
[359572064,1746133846873,-1961.5,0.00035616,11]
[359572066,1746133846882,-1000.0,0.00035616,60]
[359572068,1746133846891,-738.57,0.00035616,11]
[359572069,1746133846901,-470.0,0.00035616,11]
[359572070,1746133846910,-1019.41,0.00035616,11]
[359572071,1746133846920,-644.23,0.00035616,11]
[359572072,1746133846929,-450.0,0.00035616,11]
[359572073,1746133846938,-502.86085126,0.00035616,11]
[359572074,1746133846948,-450.0,0.00035616,11]
[359572075,1746133846957,-875.6,0.00035616,11]
[359572076,1746133846967,-542.43032161,0.00035616,11]
[359572077,1746133846976,-450.0,0.00035616,11]
[359572078,1746133846987,-450.0,0.00035616,11]
[359572079,1746133846996,-1166.55,0.00035616,11]
[359572080,1746133847006,-450.0,0.00035616,11]
[359572081,1746133847015,-675.8,0.00035616,11]
[359572082,1746133847025,-450.0,0.00035616,11]
[359572083,1746133847034,-450.0,0.00035616,11]
[359572084,1746133847044,-570.96274898,0.00035616,11]
[359572085,1746133847053,-516.70590191,0.00035616,11]
[359572086,1746133847063,-848.81,0.00035616,11]
[359572087,1746133847073,-825.62,0.00035616,11]
[359572088,1746133847082,-151.0,0.00035616,7]
[359572089,1746133847094,-450.0,0.00035616,11]
[359572090,1746133847104,-470.0,0.00035616,11]
[359572091,1746133847114,-450.0,0.00035616,11]
[359572092,1746133847125,-629.93,0.00035616,11]
[359572093,1746133847134,-453.72,0.00035616,11]
[359572094,1746133847144,-450.0,0.00035616,11]
[359572095,1746133847153,-595.4015744,0.00035616,11]
[359572096,1746133847163,-305.17212908,0.00035616,11]
[359572097,1746133847172,-450.0,0.00035616,11]
[359572098,1746133847183,-450.0,0.00035616,11]
[359572099,1746133847192,-507.60100621,0.00035616,11]
[359572100,1746133847202,-450.0,0.00035616,11]
[359572101,1746133847211,-564.19,0.00035616,11]
[359572102,1746133847221,-602.74,0.00035616,11]
[359572103,1746133847232,-470.0,0.00035616,11]
[359572104,1746133847243,-450.0,0.00035616,11]
[359572105,1746133847254,-450.0,0.00035616,11]
[359572106,1746133847264,-482.59,0.00035616,11]
[359572107,1746133847274,-450.0,0.00035616,11]
[359572108,1746133847284,-165.815131,0.00035616,7]
[359572109,1746133847293,-450.0,0.00035616,11]
[359572110,1746133847303,-450.0,0.00035616,11]
[359572111,1746133847312,-187.57071096,0.00035616,11]
[359572112,1746133847321,-450.0,0.00035616,11]
[359572113,1746133847331,-500.64,0.00035616,11]
[359572114,1746133847342,-846.3,0.00035616,11]
[359572115,1746133847352,-450.0,0.00035616,11]
[359572116,1746133847363,-450.0,0.00035616,11]
[359572117,1746133847373,-470.0,0.00035616,11]
[359572118,1746133847383,-450.0,0.00035616,11]
[359572119,1746133847392,-450.0,0.00035616,11]
[359572120,1746133847402,-473.55,0.00035616,11]
[359572121,1746133847414,-537.94352884,0.00035616,11]
[359572122,1746133847424,-496.15403073,0.00035616,11]
[359572123,1746133847433,-450.0,0.00035616,11]
[359572124,1746133847443,-1983.46,0.00035616,11]
[359572125,1746133847452,-450.0,0.00035616,11]
[359572126,1746133847461,-456.26,0.00035616,11]
[359572127,1746133847471,-517.15182725,0.00035616,11]
[359572128,1746133847480,-450.0,0.00035616,11]
[359572129,1746133847489,-450.0,0.00035616,11]
[359572130,1746133847498,-308.06556597,0.00035616,11]
[359572131,1746133847508,-450.0,0.00035616,11]
[359572132,1746133847517,-500.0,0.00035616,11]
[359572133,1746133847526,-691.77,0.00035616,11]
[359572134,1746133847536,-450.0,0.00035616,11]
[359572135,1746133847545,-450.0,0.00035616,11]
[359572136,1746133847554,-450.0,0.00035616,11]
[359572137,1746133847564,-450.0,0.00035616,11]
[359572138,1746133847573,-1011.23,0.00035616,11]
[359572139,1746133847582,-533.53,0.00035616,11]
[359572140,1746133847591,-450.0,0.00035616,11]
[359572141,1746133847601,-696.87,0.00035616,11]
[359572142,1746133847610,-450.0,0.00035616,11]
[359572143,1746133847620,-1033.35,0.00035616,11]
[359572144,1746133847629,-450.0,0.00035616,11]
[359572145,1746133847639,-450.0,0.00035616,11]
[359572146,1746133847648,-447.38186049,0.00035616,11]
[359572147,1746133847658,-2864.99,0.00035616,11]
[359572148,1746133847667,-824.89,0.00035616,11]
[359572149,1746133847676,-450.0,0.00035616,11]
[359572150,1746133847685,-450.0,0.00035616,11]
[359572151,1746133847694,-450.0,0.00035616,11]
[359572152,1746133847703,-450.0,0.00035616,11]
[359572153,1746133847712,-530.56,0.00035616,11]
[359572154,1746133847722,-715.63,0.00035616,11]
[359572155,1746133847731,-632.41,0.00035616,11]
[359572156,1746133847741,-450.0,0.00035616,10]
[359572157,1746133847749,-450.0,0.00035616,11]
[359572158,1746133847759,-450.0,0.00035616,11]
[359572159,1746133847768,-450.0,0.00035616,11]
[359572160,1746133847777,-450.0,0.00035616,11]
[359572161,1746133847786,-2166.8,0.00035616,11]
[359572162,1746133847795,-450.0,0.00035616,11]
[359572163,1746133847805,-450.0,0.00035616,11]
[359572164,1746133847814,-450.0,0.00035616,11]
[359572165,1746133847823,-450.0,0.00035616,11]
[359572166,1746133847833,-450.0,0.00035616,11]
[359572167,1746133847842,-450.0,0.00035616,11]
[359572168,1746133847852,-519.19758941,0.00035616,11]
[359572169,1746133847862,-450.0,0.00035616,11]
[359572170,1746133847871,-450.0,0.00035616,11]
[359572171,1746133847881,-590.1142189,0.00035616,11]
[359572172,1746133847890,-450.0,0.00035616,11]
[359572173,1746133847900,-450.0,0.00035616,11]
[359572174,1746133847909,-450.0,0.00035616,11]
[359572175,1746133847919,-697.22,0.00035616,11]
[359572176,1746133847929,-450.0,0.00035616,11]
[359572177,1746133847939,-450.0,0.00035616,11]
[359572178,1746133847948,-450.0,0.00035616,11]
[359572179,1746133847958,-4646.57,0.00035616,11]
[359572180,1746133847967,-450.0,0.00035616,11]
[359572181,1746133847976,-450.0,0.00035616,11]
[359572182,1746133847986,-450.0,0.00035616,11]
[359572183,1746133847995,-450.0,0.00035616,11]
[359572184,1746133848005,-832.45,0.00035616,11]
[359572185,1746133848014,-450.0,0.00035616,11]
[359572186,1746133848025,-601.68,0.00035616,11]
[359572187,1746133848035,-450.0,0.00035616,11]
[359572188,1746133848044,-450.0,0.00035616,11]
[359572189,1746133848054,-367.82641031,0.00035616,11]
[359572190,1746133848063,-450.0,0.00035616,11]
[359572191,1746133848073,-1410.47,0.00035616,11]
[359572192,1746133848083,-450.0,0.00035616,11]
[359572193,1746133848092,-450.0,0.00035616,11]
[359572194,1746133848102,-1405.6,0.00035616,11]
[359572195,1746133848112,-450.0,0.00035616,11]
[359572196,1746133848121,-450.0,0.00035616,11]
[359572197,1746133848131,-1411.61,0.00035616,11]
[359572198,1746133848141,-500.0,0.00035616,11]
[359572199,1746133848151,-539.9,0.00035616,11]
[359572200,1746133848161,-450.0,0.00035616,11]
[359572201,1746133848171,-193.10149593,0.00035616,11]
[359572202,1746133848180,-450.0,0.00035616,11]
[359572203,1746133848190,-151.0,0.00035616,7]
[359572204,1746133848199,-450.0,0.00035616,11]
[359572205,1746133848209,-450.0,0.00035616,11]
[359572206,1746133848219,-450.0,0.00035616,11]
[359572207,1746133848228,-563.92,0.00035616,11]
[359572208,1746133848239,-450.0,0.00035616,11]
[359572209,1746133848248,-500.0,0.00035616,11]
[359572210,1746133848257,-470.0,0.00035616,11]
[359572211,1746133848267,-450.0,0.00035616,11]
[359572212,1746133848276,-450.0,0.00035616,11]
[359572213,1746133848286,-450.0,0.00035616,11]
[359572214,1746133848296,-450.0,0.00035616,11]
[359572215,1746133848305,-974.13,0.00035616,11]
[359572216,1746133848315,-450.0,0.00035616,11]
[359572217,1746133848324,-524.58,0.00035616,11]
[359572218,1746133848336,-450.0,0.00035616,11]
[359572219,1746133848346,-888.0,0.00035616,14]
[359572220,1746133848355,-450.0,0.00035616,11]
[359572221,1746133848365,-450.0,0.00035616,11]
[359572222,1746133848374,-450.0,0.00035616,11]
[359572223,1746133848385,-450.0,0.00035616,11]
[359572224,1746133848394,-4227.14,0.00035616,11]
[359572225,1746133848403,-450.0,0.00035616,11]
[359572226,1746133848413,-1410.65,0.00035616,11]
[359572227,1746133848423,-450.0,0.00035616,11]
[359572228,1746133848433,-450.0,0.00035616,11]
[359572229,1746133848442,-1036.61,0.00035616,11]
[359572230,1746133848452,-1191.23,0.00035616,11]
[359572231,1746133848461,-450.0,0.00035616,11]
[359572232,1746133848471,-722.56,0.00035616,11]
[359572233,1746133848480,-450.0,0.00035616,11]
[359572234,1746133848489,-613.1,0.00035616,11]
[359572235,1746133848499,-755.14,0.00035616,11]
[359572236,1746133848508,-450.0,0.00035616,11]
[359572237,1746133848518,-450.0,0.00035616,11]
[359572238,1746133848527,-450.0,0.00035616,11]
[359572239,1746133848536,-450.0,0.00035616,11]
[359572240,1746133848545,-450.0,0.00035616,11]
[359572241,1746133848555,-450.0,0.00035616,11]
[359572242,1746133848565,-151.0,0.00035616,7]
[359572243,1746133848574,-450.0,0.00035616,11]
[359572244,1746133848584,-450.0,0.00035616,11]
[359572245,1746133848593,-450.0,0.00035616,11]
[359572246,1746133848602,-450.0,0.00035616,11]
[359572247,1746133848611,-450.0,0.00035616,11]
[359572248,1746133848620,-478.97,0.00035616,11]
[359572249,1746133848630,-1245.35,0.00035616,11]
[359572250,1746133848639,-583.23,0.00035616,11]
[359572251,1746133848648,-698.22,0.00035616,11]
[359572252,1746133848658,-450.0,0.00035616,11]
[359572253,1746133848667,-450.0,0.00035616,11]
[359572254,1746133848677,-847.07,0.00035616,11]
[359572255,1746133848686,-1356.12,0.00035616,11]
[359572256,1746133848696,-477.49,0.00035616,11]
[359572257,1746133848705,-498.33,0.00035616,11]
[359572258,1746133848715,-450.0,0.00035616,11]
[359572259,1746133848724,-500.0,0.00035616,11]
[359572260,1746133848734,-618.18332005,0.00035616,11]
[359572261,1746133848743,-190.98700723,0.00035616,11]
[359572262,1746133848753,-450.0,0.00035616,11]
[359572263,1746133848763,-450.0,0.00035616,11]
[359572264,1746133848772,-450.0,0.00035616,11]
[359572265,1746133848782,-450.0,0.00035616,11]
[359572266,1746133848792,-1072.9,0.00035616,11]
[359572267,1746133848801,-450.0,0.00035616,11]
[359572268,1746133848811,-450.0,0.00035616,11]
[359572269,1746133848821,-223.10854448,0.00035616,11]
[359572270,1746133848831,-450.0,0.00035616,11]
[359572271,1746133848840,-862.37,0.00035616,11]
[359572272,1746133848850,-820.6,0.00035616,11]
[359572273,1746133848859,-249.81271707,0.00035616,11]
[359572274,1746133848869,-450.0,0.00035616,11]
[359572275,1746133848879,-450.0,0.00035616,11]
[359572276,1746133848888,-437.39136868,0.00035616,11]